[Event "Titled Tuesday Blitz November 01 Early 2022"]
[White "Yeritsyan, Hayk"]
[Black "Csonka, Balazs"]
[WhiteFideId "13307320"]
[BlackFideId "742910"]
[WhiteElo "2404"]
[BlackElo "2404"]
[Result "1/2-1/2"]
[Round "01"]
[TimeControl "180+1"]
[Date "2022.11.02"]
[WhiteClock "0:00:09"]
[BlackClock "0:00:03"]

1. d4 {[%clk 0:02:59]}  d5 {[%clk 0:02:59]} 2. Nf3 {[%clk 0:02:59]}  Nf6 {[%clk 0:02:58]} 3. e3 {[%clk 0:02:59]}  c5 {[%clk 0:02:52]} 4. Bd3 {[%clk 0:02:58]}  Nc6 {[%clk 0:02:50]} 5. c3 {[%clk 0:02:57]}  Bg4 {[%clk 0:02:48]} 6. Nbd2 {[%clk 0:02:58]}  e6 {[%clk 0:02:48]} 7. Qa4 {[%clk 0:02:58]}  Nd7 {[%clk 0:02:42]} 8. dxc5 {[%clk 0:02:56]}  Bxf3 {[%clk 0:02:42]} 9. Nxf3 {[%clk 0:02:55]}  Nxc5 {[%clk 0:02:41]} 10. Qd1 {[%clk 0:02:55]}  g6 {[%clk 0:02:39]} 11. Bb5 {[%clk 0:02:53]}  Bg7 {[%clk 0:02:37]} 12. Bxc6+ {[%clk 0:02:54]}  bxc6 {[%clk 0:02:37]} 13. O-O {[%clk 0:02:53]}  O-O {[%clk 0:02:35]} 14. Qc2 {[%clk 0:02:54]}  e5 {[%clk 0:02:26]} 15. b3 {[%clk 0:02:49]}  Re8 {[%clk 0:01:28]} 16. Ba3 {[%clk 0:02:39]}  Qa5 {[%clk 0:01:28]} 17. Bb2 {[%clk 0:02:07]}  Qa6 {[%clk 0:01:22]} 18. Rac1 {[%clk 0:02:01]}  Nd3 {[%clk 0:01:19]} 19. Rcd1 {[%clk 0:00:51]}  e4 {[%clk 0:01:18]} 20. Ne1 {[%clk 0:00:50]}  Nxb2 {[%clk 0:01:03]} 21. Qxb2 {[%clk 0:00:51]}  h5 {[%clk 0:01:00]} 22. Nc2 {[%clk 0:00:49]}  h4 {[%clk 0:00:58]} 23. h3 {[%clk 0:00:47]}  Re5 {[%clk 0:00:55]} 24. Qa3 {[%clk 0:00:42]}  Qb7 {[%clk 0:00:41]} 25. Qd6 {[%clk 0:00:24]}  Re6 {[%clk 0:00:28]} 26. Qc5 {[%clk 0:00:19]}  Qb6 {[%clk 0:00:26]} 27. Qxb6 {[%clk 0:00:14]}  axb6 {[%clk 0:00:27]} 28. a4 {[%clk 0:00:15]}  Bxc3 {[%clk 0:00:26]} 29. Nd4 {[%clk 0:00:13]}  Bxd4 {[%clk 0:00:15]} 30. Rxd4 {[%clk 0:00:14]}  Kf8 {[%clk 0:00:14]} 31. Rc1 {[%clk 0:00:13]}  Ke7 {[%clk 0:00:14]} 32. Rb4 {[%clk 0:00:13]}  c5 {[%clk 0:00:09]} 33. Rb5 {[%clk 0:00:13]}  Rc6 {[%clk 0:00:08]} 34. b4 {[%clk 0:00:11]}  Rac8 {[%clk 0:00:05]} 35. bxc5 {[%clk 0:00:09]}  Rxc5 {[%clk 0:00:04]} 36. Rcxc5 {[%clk 0:00:07]}  bxc5 {[%clk 0:00:03]} 37. a5 {[%clk 0:00:06]}  c4 {[%clk 0:00:03]} 38. Rxd5 {[%clk 0:00:06]}  c3 {[%clk 0:00:02]} 39. Rd1 {[%clk 0:00:06]}  Ke6 {[%clk 0:00:02]} 40. Kf1 {[%clk 0:00:06]}  c2 {[%clk 0:00:02]} 41. Rc1 {[%clk 0:00:06]}  Kd5 {[%clk 0:00:02]} 42. Ke2 {[%clk 0:00:07]}  Ra8 {[%clk 0:00:02]} 43. Rxc2 {[%clk 0:00:05]}  Rxa5 {[%clk 0:00:02]} 44. Rd2+ {[%clk 0:00:05]}  Ke5 {[%clk 0:00:03]} 45. Rb2 {[%clk 0:00:04]}  f5 {[%clk 0:00:02]} 46. Rc2 {[%clk 0:00:04]}  g5 {[%clk 0:00:02]} 47. Kd2 {[%clk 0:00:04]}  Rd5+ {[%clk 0:00:03]} 48. Ke2 {[%clk 0:00:04]}  f4 {[%clk 0:00:03]} 49. f3 {[%clk 0:00:04]}  fxe3 {[%clk 0:00:02]} 50. Kxe3 {[%clk 0:00:04]}  Rd3+ {[%clk 0:00:02]} 51. Ke2 {[%clk 0:00:05]}  Kf4 {[%clk 0:00:03]} 52. fxe4 {[%clk 0:00:05]}  Rg3 {[%clk 0:00:03]} 53. Kf2 {[%clk 0:00:05]}  Kxe4 {[%clk 0:00:04]} 54. Rc4+ {[%clk 0:00:05]}  Kf5 {[%clk 0:00:04]} 55. Rc5+ {[%clk 0:00:06]}  Kg6 {[%clk 0:00:04]} 56. Rc6+ {[%clk 0:00:06]}  Kh5 {[%clk 0:00:04]} 57. Rc8 {[%clk 0:00:06]}  Ra3 {[%clk 0:00:04]} 58. Rh8+ {[%clk 0:00:07]}  Kg6 {[%clk 0:00:05]} 59. Rg8+ {[%clk 0:00:07]}  Kf6 {[%clk 0:00:05]} 60. Rf8+ {[%clk 0:00:07]}  Ke6 {[%clk 0:00:05]} 61. Rb8 {[%clk 0:00:05]}  Ra2+ {[%clk 0:00:05]} 62. Kf3 {[%clk 0:00:05]}  Ra3+ {[%clk 0:00:05]} 63. Kf2 {[%clk 0:00:06]}  Ra5 {[%clk 0:00:05]} 64. Rb7 {[%clk 0:00:05]}  Ke5 {[%clk 0:00:05]} 65. Rf7 {[%clk 0:00:04]}  Ke4 {[%clk 0:00:05]} 66. Kg1 {[%clk 0:00:04]}  Re5 {[%clk 0:00:03]} 67. Kh2 {[%clk 0:00:04]}  Ke3 {[%clk 0:00:04]} 68. Rf3+ {[%clk 0:00:03]}  Ke2 {[%clk 0:00:04]} 69. Rf8 {[%clk 0:00:04]}  Re3 {[%clk 0:00:03]} 70. Kg1 {[%clk 0:00:04]}  Rg3 {[%clk 0:00:03]} 71. Rf5 {[%clk 0:00:03]}  Ke3 {[%clk 0:00:03]} 72. Kh2 {[%clk 0:00:03]}  Ke4 {[%clk 0:00:03]} 73. Rf8 {[%clk 0:00:03]}  Kd4 {[%clk 0:00:04]} 74. Rf7 {[%clk 0:00:03]}  Ke3 {[%clk 0:00:04]} 75. Rf8 {[%clk 0:00:03]}  Ke2 {[%clk 0:00:04]} 76. Rf7 {[%clk 0:00:03]}  Kd2 {[%clk 0:00:04]} 77. Rf8 {[%clk 0:00:04]}  Kc3 {[%clk 0:00:04]} 78. Rg8 {[%clk 0:00:04]}  Kd4 {[%clk 0:00:04]} 79. Rf8 {[%clk 0:00:04]}  Ke5 {[%clk 0:00:04]} 80. Rf7 {[%clk 0:00:04]}  Ke6 {[%clk 0:00:05]} 81. Rf8 {[%clk 0:00:04]}  Ke7 {[%clk 0:00:05]} 82. Rf2 {[%clk 0:00:05]}  Kd6 {[%clk 0:00:05]} 83. Kg1 {[%clk 0:00:04]}  Ke5 {[%clk 0:00:04]} 84. Kf1 {[%clk 0:00:04]}  Ke4 {[%clk 0:00:04]} 85. Kg1 {[%clk 0:00:05]}  Rd3 {[%clk 0:00:04]} 86. Kh2 {[%clk 0:00:04]}  Rd5 {[%clk 0:00:03]} 87. Rf8 {[%clk 0:00:04]}  Ke3 {[%clk 0:00:04]} 88. Rf7 {[%clk 0:00:04]}  Re5 {[%clk 0:00:04]} 89. Rf6 {[%clk 0:00:03]}  Ke2 {[%clk 0:00:04]} 90. Kg1 {[%clk 0:00:02]}  Re3 {[%clk 0:00:03]} 91. Rf7 {[%clk 0:00:03]}  Rg3 {[%clk 0:00:03]} 92. Rf8 {[%clk 0:00:03]}  g4 {[%clk 0:00:04]} 93. hxg4 {[%clk 0:00:03]}  h3 {[%clk 0:00:04]} 94. Re8+ {[%clk 0:00:03]}  Kd3 {[%clk 0:00:03]} 95. Rd8+ {[%clk 0:00:03]}  Ke4 {[%clk 0:00:03]} 96. Re8+ {[%clk 0:00:03]}  Kf4 {[%clk 0:00:03]} 97. Rf8+ {[%clk 0:00:04]}  Ke3 {[%clk 0:00:03]} 98. Re8+ {[%clk 0:00:04]}  Kd3 {[%clk 0:00:03]} 99. Rd8+ {[%clk 0:00:04]}  Ke2 {[%clk 0:00:03]} 100. Re8+ {[%clk 0:00:04]}  Kd2 {[%clk 0:00:04]} 101. Rd8+ {[%clk 0:00:04]}  Kc3 {[%clk 0:00:03]} 102. Rc8+ {[%clk 0:00:04]}  Kd4 {[%clk 0:00:04]} 103. Kh2 {[%clk 0:00:02]}  hxg2 {[%clk 0:00:02]} 104. Kg1 {[%clk 0:00:02]}  Kd3 {[%clk 0:00:02]} 105. Ra8 {[%clk 0:00:02]}  Rxg4 {[%clk 0:00:01]} 106. Ra2 {[%clk 0:00:01]}  Ke3 {[%clk 0:00:02]} 107. Rxg2 {[%clk 0:00:01]}  Ra4 {[%clk 0:00:02]} 108. Kh2 {[%clk 0:00:01]}  Ra5 {[%clk 0:00:02]} 109. Rg3+ {[%clk 0:00:02]}  Kf4 {[%clk 0:00:02]} 110. Rg2 {[%clk 0:00:03]}  Ra3 {[%clk 0:00:02]} 111. Kg1 {[%clk 0:00:03]}  Ra1+ {[%clk 0:00:02]} 112. Kh2 {[%clk 0:00:03]}  Rf1 {[%clk 0:00:03]} 113. Rg1 {[%clk 0:00:03]}  Rf2+ {[%clk 0:00:03]} 114. Rg2 {[%clk 0:00:04]}  Rf3 {[%clk 0:00:04]} 115. Kg1 {[%clk 0:00:04]}  Rc3 {[%clk 0:00:04]} 116. Rf2+ {[%clk 0:00:05]}  Kg3 {[%clk 0:00:03]} 117. Rg2+ {[%clk 0:00:03]}  Kh3 {[%clk 0:00:03]} 118. Rh2+ {[%clk 0:00:03]}  Kg3 {[%clk 0:00:03]} 119. Rg2+ {[%clk 0:00:04]}  Kf3 {[%clk 0:00:04]} 120. Rf2+ {[%clk 0:00:04]}  Ke3 {[%clk 0:00:05]} 121. Kg2 {[%clk 0:00:05]}  Rc8 {[%clk 0:00:05]} 122. Rf3+ {[%clk 0:00:05]}  Ke2 {[%clk 0:00:05]} 123. Rf2+ {[%clk 0:00:05]}  Ke1 {[%clk 0:00:06]} 124. Rf3 {[%clk 0:00:05]}  Rg8+ {[%clk 0:00:04]} 125. Rg3 {[%clk 0:00:05]}  Re8 {[%clk 0:00:04]} 126. Rf3 {[%clk 0:00:06]}  Re2+ {[%clk 0:00:04]} 127. Kg3 {[%clk 0:00:06]}  Ra2 {[%clk 0:00:04]} 128. Kf4 {[%clk 0:00:06]}  Ra4+ {[%clk 0:00:04]} 129. Kg3 {[%clk 0:00:06]}  Ke2 {[%clk 0:00:04]} 130. Rf4 {[%clk 0:00:06]}  Ra3+ {[%clk 0:00:04]} 131. Kg4 {[%clk 0:00:07]}  Ra1 {[%clk 0:00:03]} 132. Kf5 {[%clk 0:00:08]}  Rg1 {[%clk 0:00:04]} 133. Re4+ {[%clk 0:00:08]}  Kd3 {[%clk 0:00:04]} 134. Rf4 {[%clk 0:00:08]}  Rg2 {[%clk 0:00:04]} 135. Ke5 {[%clk 0:00:08]}  Rg5+ {[%clk 0:00:04]} 136. Rf5 {[%clk 0:00:09]}  Rg8 {[%clk 0:00:04]} 137. Rf6 {[%clk 0:00:09]}  Re8+ {[%clk 0:00:05]} 138. Re6 {[%clk 0:00:09]}  Rd8 {[%clk 0:00:03]} 1/2-1/2


[Site "https://www.chess.com"]

[Event "Titled Tuesday Blitz November 01 Early 2022"]
[White "Yurasova, Daria"]
[Black "Rohith Krishna S"]
[WhiteFideId "34146919"]
[BlackFideId "46617051"]
[WhiteElo "2044"]
[BlackElo "2270"]
[Result "0-1"]
[Round "01"]
[TimeControl "180+1"]
[Date "2022.11.02"]
[WhiteClock "0:00:39"]
[BlackClock "0:01:27"]

1. d4 {[%clk 0:02:56]}  Nf6 {[%clk 0:02:57]} 2. Bg5 {[%clk 0:02:55]}  Ne4 {[%clk 0:02:51]} 3. Bf4 {[%clk 0:02:54]}  c5 {[%clk 0:02:52]} 4. e3 {[%clk 0:02:52]}  d5 {[%clk 0:02:49]} 5. Nf3 {[%clk 0:02:49]}  e6 {[%clk 0:02:48]} 6. Nbd2 {[%clk 0:02:48]}  Nc6 {[%clk 0:02:47]} 7. c3 {[%clk 0:02:44]}  Bd6 {[%clk 0:02:43]} 8. Bg3 {[%clk 0:02:38]}  Nxg3 {[%clk 0:02:37]} 9. hxg3 {[%clk 0:02:39]}  e5 {[%clk 0:02:32]} 10. dxe5 {[%clk 0:02:38]}  Nxe5 {[%clk 0:02:33]} 11. Nxe5 {[%clk 0:02:37]}  Bxe5 {[%clk 0:02:34]} 12. Nf3 {[%clk 0:02:38]}  Bf6 {[%clk 0:02:29]} 13. Bb5+ {[%clk 0:02:37]}  Bd7 {[%clk 0:02:29]} 14. Bxd7+ {[%clk 0:02:37]}  Qxd7 {[%clk 0:02:30]} 15. Qd2 {[%clk 0:02:37]}  O-O-O {[%clk 0:02:21]} 16. O-O {[%clk 0:02:31]}  h5 {[%clk 0:02:21]} 17. c4 {[%clk 0:02:13]}  dxc4 {[%clk 0:02:17]} 18. Qc2 {[%clk 0:02:12]}  Qd3 {[%clk 0:02:06]} 19. Qa4 {[%clk 0:02:12]}  Kb8 {[%clk 0:01:57]} 20. Rac1 {[%clk 0:01:38]}  h4 {[%clk 0:01:42]} 21. gxh4 {[%clk 0:01:37]}  Bxh4 {[%clk 0:01:42]} 22. Nxh4 {[%clk 0:01:27]}  Rxh4 {[%clk 0:01:38]} 23. g3 {[%clk 0:01:10]}  Rdh8 {[%clk 0:01:38]} 24. Kg2 {[%clk 0:00:50]}  Qe4+ {[%clk 0:01:28]} 25. f3 {[%clk 0:00:38]}  Rh2+ {[%clk 0:01:27]} 26. Kg1 {[%clk 0:00:39]}  Qxe3+ {[%clk 0:01:27]} 0-1


[Site "https://www.chess.com"]

[Event "Titled Tuesday Blitz November 01 Early 2022"]
[White "Aarav Dengla"]
[Black "Baruch, Liam"]
[WhiteFideId "45059756"]
[BlackFideId "14322064"]
[WhiteElo "2257"]
[BlackElo "1959"]
[Result "1-0"]
[Round "02"]
[TimeControl "180+1"]
[Date "2022.11.02"]
[WhiteClock "0:00:08"]
[BlackClock "0:00:03"]

1. e4 {[%clk 0:03:00]}  e5 {[%clk 0:02:59]} 2. Nf3 {[%clk 0:03:00]}  Nc6 {[%clk 0:03:00]} 3. Bb5 {[%clk 0:03:00]}  a6 {[%clk 0:03:00]} 4. Ba4 {[%clk 0:02:57]}  Nf6 {[%clk 0:03:00]} 5. d3 {[%clk 0:02:57]}  b5 {[%clk 0:03:00]} 6. Bb3 {[%clk 0:02:57]}  Bc5 {[%clk 0:02:59]} 7. O-O {[%clk 0:02:55]}  d6 {[%clk 0:02:59]} 8. c3 {[%clk 0:02:55]}  h6 {[%clk 0:02:52]} 9. Re1 {[%clk 0:02:54]}  O-O {[%clk 0:02:50]} 10. Nbd2 {[%clk 0:02:53]}  Bb6 {[%clk 0:02:50]} 11. Nf1 {[%clk 0:02:51]}  Ne7 {[%clk 0:02:48]} 12. a4 {[%clk 0:02:41]}  Rb8 {[%clk 0:02:44]} 13. Nh4 {[%clk 0:02:30]}  Kh7 {[%clk 0:02:37]} 14. Be3 {[%clk 0:02:23]}  Bg4 {[%clk 0:02:22]} 15. Qd2 {[%clk 0:02:13]}  Ng6 {[%clk 0:02:14]} 16. Nxg6 {[%clk 0:02:10]}  fxg6 {[%clk 0:02:13]} 17. h3 {[%clk 0:02:04]}  Bd7 {[%clk 0:02:11]} 18. Bxb6 {[%clk 0:02:02]}  Rxb6 {[%clk 0:02:10]} 19. a5 {[%clk 0:02:01]}  Rb8 {[%clk 0:02:06]} 20. d4 {[%clk 0:02:01]}  Nh5 {[%clk 0:01:49]} 21. dxe5 {[%clk 0:01:39]}  dxe5 {[%clk 0:01:49]} 22. Rad1 {[%clk 0:01:20]}  Bc6 {[%clk 0:01:21]} 23. Qe3 {[%clk 0:01:19]}  Qf6 {[%clk 0:01:18]} 24. Nh2 {[%clk 0:01:13]}  Nf4 {[%clk 0:01:15]} 25. Rd2 {[%clk 0:01:00]}  h5 {[%clk 0:01:08]} 26. Red1 {[%clk 0:00:48]}  b4 {[%clk 0:00:57]} 27. Bc4 {[%clk 0:00:45]}  bxc3 {[%clk 0:00:52]} 28. bxc3 {[%clk 0:00:46]}  Bb5 {[%clk 0:00:52]} 29. Bd5 {[%clk 0:00:39]}  c6 {[%clk 0:00:49]} 30. Ba2 {[%clk 0:00:34]}  Ba4 {[%clk 0:00:45]} 31. Re1 {[%clk 0:00:22]}  Bb3 {[%clk 0:00:44]} 32. Bxb3 {[%clk 0:00:21]}  Rxb3 {[%clk 0:00:43]} 33. h4 {[%clk 0:00:17]}  Rb7 {[%clk 0:00:37]} 34. g3 {[%clk 0:00:16]}  Ne6 {[%clk 0:00:33]} 35. Kg2 {[%clk 0:00:17]}  Qe7 {[%clk 0:00:28]} 36. Nf3 {[%clk 0:00:16]}  Rfb8 {[%clk 0:00:26]} 37. Nxe5 {[%clk 0:00:16]}  Rc7 {[%clk 0:00:21]} 38. Red1 {[%clk 0:00:16]}  Rf8 {[%clk 0:00:18]} 39. Rd7 {[%clk 0:00:14]}  Rxd7 {[%clk 0:00:19]} 40. Rxd7 {[%clk 0:00:15]}  Qf6 {[%clk 0:00:18]} 41. Nxc6 {[%clk 0:00:15]}  g5 {[%clk 0:00:15]} 42. hxg5 {[%clk 0:00:13]}  Nxg5 {[%clk 0:00:15]} 43. Nd4 {[%clk 0:00:13]}  h4 {[%clk 0:00:14]} 44. gxh4 {[%clk 0:00:10]}  Ne6 {[%clk 0:00:14]} 45. Nf5 {[%clk 0:00:10]}  Qg6+ {[%clk 0:00:14]} 46. Qg3 {[%clk 0:00:10]}  Nf4+ {[%clk 0:00:14]} 47. Kf3 {[%clk 0:00:09]}  Qxg3+ {[%clk 0:00:09]} 48. fxg3 {[%clk 0:00:08]}  Ne6 {[%clk 0:00:09]} 49. Re7 {[%clk 0:00:08]}  Rf6 {[%clk 0:00:08]} 50. g4 {[%clk 0:00:08]}  Kg6 {[%clk 0:00:06]} 51. g5 {[%clk 0:00:06]}  Rf8 {[%clk 0:00:04]} 52. Rxe6+ {[%clk 0:00:06]}  Kh7 {[%clk 0:00:04]} 53. g6+ {[%clk 0:00:06]}  Kg8 {[%clk 0:00:04]} 54. Kg4 {[%clk 0:00:07]}  Rd8 {[%clk 0:00:01]} 55. Rxa6 {[%clk 0:00:07]}  Rb8 {[%clk 0:00:02]} 56. Ne7+ {[%clk 0:00:07]}  Kh8 {[%clk 0:00:02]} 57. Nc6 {[%clk 0:00:07]}  Rc8 {[%clk 0:00:01]} 58. e5 {[%clk 0:00:07]}  Rd8 {[%clk 0:00:02]} 59. Nxd8 {[%clk 0:00:07]}  Kg8 {[%clk 0:00:03]} 60. Ra8 {[%clk 0:00:07]}  Kf8 {[%clk 0:00:03]} 61. Nc6# {[%clk 0:00:08]} 1-0


[Site "https://www.chess.com"]

[Event "Titled Tuesday Blitz November 01 Early 2022"]
[White "Aizpurua, Patrick Emilio"]
[Black "Harriott, Tyrell"]
[WhiteFideId "6600522"]
[BlackFideId "2086484"]
[WhiteElo "2378"]
[BlackElo "2107"]
[Result "0-1"]
[Round "02"]
[TimeControl "180+1"]
[Date "2022.11.02"]
[WhiteClock "0:00:03"]
[BlackClock "0:00:03"]

1. d4 {[%clk 0:03:00]}  e6 {[%clk 0:02:59]} 2. c4 {[%clk 0:02:59]}  d5 {[%clk 0:02:59]} 3. Nf3 {[%clk 0:03:00]}  c6 {[%clk 0:02:59]} 4. b3 {[%clk 0:02:57]}  f5 {[%clk 0:02:58]} 5. Bf4 {[%clk 0:02:55]}  Nf6 {[%clk 0:02:56]} 6. g3 {[%clk 0:02:55]}  Nbd7 {[%clk 0:02:52]} 7. Bg2 {[%clk 0:02:55]}  Ne4 {[%clk 0:02:52]} 8. O-O {[%clk 0:02:54]}  Be7 {[%clk 0:02:52]} 9. Qc2 {[%clk 0:02:48]}  O-O {[%clk 0:02:51]} 10. Ne1 {[%clk 0:02:45]}  g5 {[%clk 0:02:49]} 11. Bc1 {[%clk 0:02:44]}  Qe8 {[%clk 0:02:37]} 12. f3 {[%clk 0:02:41]}  Nd6 {[%clk 0:02:36]} 13. Nd3 {[%clk 0:02:33]}  Qh5 {[%clk 0:02:34]} 14. Nc3 {[%clk 0:02:24]}  Bf6 {[%clk 0:02:30]} 15. e3 {[%clk 0:02:20]}  dxc4 {[%clk 0:02:22]} 16. bxc4 {[%clk 0:02:19]}  Nxc4 {[%clk 0:02:22]} 17. Qb3 {[%clk 0:02:18]}  Ndb6 {[%clk 0:02:13]} 18. a4 {[%clk 0:02:15]}  a5 {[%clk 0:02:10]} 19. f4 {[%clk 0:02:01]}  h6 {[%clk 0:02:03]} 20. Ne5 {[%clk 0:01:35]}  Bxe5 {[%clk 0:01:59]} 21. dxe5 {[%clk 0:01:26]}  Rd8 {[%clk 0:01:45]} 22. e4 {[%clk 0:01:23]}  Qf7 {[%clk 0:01:33]} 23. fxg5 {[%clk 0:01:20]}  hxg5 {[%clk 0:01:32]} 24. Bxg5 {[%clk 0:01:19]}  Rd3 {[%clk 0:01:26]} 25. Bf6 {[%clk 0:01:08]}  Bd7 {[%clk 0:01:21]} 26. Rf4 {[%clk 0:01:05]}  Rd2 {[%clk 0:00:44]} 27. Rh4 {[%clk 0:00:59]}  Qg6 {[%clk 0:00:42]} 28. Bf1 {[%clk 0:00:42]}  Rb2 {[%clk 0:00:34]} 29. Qd1 {[%clk 0:00:19]}  Ne3 {[%clk 0:00:29]} 30. Qd6 {[%clk 0:00:19]}  Re8 {[%clk 0:00:08]} 31. Rh8+ {[%clk 0:00:15]}  Kf7 {[%clk 0:00:07]} 32. Rxe8 {[%clk 0:00:15]}  Qxg3+ {[%clk 0:00:05]} 33. hxg3 {[%clk 0:00:14]}  Kg6 {[%clk 0:00:06]} 34. Rh8 {[%clk 0:00:13]}  Nxf1 {[%clk 0:00:04]} 35. Rxf1 {[%clk 0:00:05]}  fxe4 {[%clk 0:00:05]} 36. Qf8 {[%clk 0:00:03]}  Rg2+ {[%clk 0:00:03]} 0-1


[Site "https://www.chess.com"]

[Event "Titled Tuesday Blitz November 01 Early 2022"]
[White "Aung Thant Zin"]
[Black "Guliev, Logman"]
[WhiteFideId "13000063"]
[BlackFideId "13400061"]
[WhiteElo "2278"]
[BlackElo "2161"]
[Result "1/2-1/2"]
[Round "02"]
[TimeControl "180+1"]
[Date "2022.11.02"]
[WhiteClock "0:00:04"]
[BlackClock "0:00:08"]

1. e4 {[%clk 0:03:00]}  e5 {[%clk 0:02:59]} 2. Nf3 {[%clk 0:03:00]}  Nc6 {[%clk 0:02:58]} 3. d4 {[%clk 0:03:00]}  exd4 {[%clk 0:02:57]} 4. Nxd4 {[%clk 0:03:01]}  Nf6 {[%clk 0:02:57]} 5. Nc3 {[%clk 0:03:01]}  Bb4 {[%clk 0:02:55]} 6. Nxc6 {[%clk 0:03:00]}  bxc6 {[%clk 0:02:54]} 7. Bd3 {[%clk 0:03:01]}  d5 {[%clk 0:02:52]} 8. exd5 {[%clk 0:03:01]}  cxd5 {[%clk 0:02:52]} 9. O-O {[%clk 0:03:01]}  O-O {[%clk 0:02:52]} 10. Bg5 {[%clk 0:02:55]}  c6 {[%clk 0:02:47]} 11. h3 {[%clk 0:02:54]}  Be7 {[%clk 0:02:45]} 12. Re1 {[%clk 0:02:43]}  Be6 {[%clk 0:02:39]} 13. Ne2 {[%clk 0:02:39]}  h6 {[%clk 0:02:37]} 14. Be3 {[%clk 0:02:18]}  c5 {[%clk 0:02:32]} 15. c3 {[%clk 0:02:14]}  Qd7 {[%clk 0:02:27]} 16. Nf4 {[%clk 0:02:10]}  Rfd8 {[%clk 0:02:24]} 17. Nxe6 {[%clk 0:02:06]}  fxe6 {[%clk 0:02:22]} 18. Bd2 {[%clk 0:01:50]}  Bd6 {[%clk 0:02:20]} 19. Qf3 {[%clk 0:01:46]}  Qf7 {[%clk 0:02:16]} 20. Rad1 {[%clk 0:01:36]}  Rf8 {[%clk 0:02:15]} 21. Qe2 {[%clk 0:01:28]}  Rae8 {[%clk 0:02:13]} 22. Bc2 {[%clk 0:01:26]}  e5 {[%clk 0:02:07]} 23. c4 {[%clk 0:01:18]}  d4 {[%clk 0:02:05]} 24. f3 {[%clk 0:01:18]}  Kh8 {[%clk 0:02:01]} 25. Rf1 {[%clk 0:01:14]}  Qh5 {[%clk 0:01:50]} 26. Be4 {[%clk 0:01:04]}  Nh7 {[%clk 0:01:41]} 27. b3 {[%clk 0:00:57]}  Rf6 {[%clk 0:01:35]} 28. Rde1 {[%clk 0:00:55]}  Ref8 {[%clk 0:01:30]} 29. Bd3 {[%clk 0:00:54]}  R8f7 {[%clk 0:01:20]} 30. Qe4 {[%clk 0:00:54]}  Nf8 {[%clk 0:01:17]} 31. Qd5 {[%clk 0:00:42]}  Qh4 {[%clk 0:01:00]} 32. Re2 {[%clk 0:00:34]}  Nh7 {[%clk 0:00:47]} 33. Re4 {[%clk 0:00:28]}  Qh5 {[%clk 0:00:42]} 34. f4 {[%clk 0:00:25]}  Bf8 {[%clk 0:00:30]} 35. fxe5 {[%clk 0:00:19]}  Rxf1+ {[%clk 0:00:27]} 36. Bxf1 {[%clk 0:00:19]}  Kg8 {[%clk 0:00:13]} 37. e6 {[%clk 0:00:18]}  Rf5 {[%clk 0:00:09]} 38. g4 {[%clk 0:00:10]}  Rxd5 {[%clk 0:00:07]} 39. gxh5 {[%clk 0:00:10]}  Rxh5 {[%clk 0:00:05]} 40. e7 {[%clk 0:00:10]}  Bxe7 {[%clk 0:00:05]} 41. Rxe7 {[%clk 0:00:10]}  Nf6 {[%clk 0:00:05]} 42. Bg2 {[%clk 0:00:09]}  Rg5 {[%clk 0:00:05]} 43. Bxg5 {[%clk 0:00:08]}  hxg5 {[%clk 0:00:06]} 44. Re5 {[%clk 0:00:07]}  g4 {[%clk 0:00:05]} 45. hxg4 {[%clk 0:00:05]}  Nxg4 {[%clk 0:00:06]} 46. Rxc5 {[%clk 0:00:05]}  Ne3 {[%clk 0:00:06]} 47. Rd5 {[%clk 0:00:05]}  Nxd5 {[%clk 0:00:05]} 48. cxd5 {[%clk 0:00:04]}  Kf8 {[%clk 0:00:06]} 49. Kf1 {[%clk 0:00:04]}  Ke7 {[%clk 0:00:07]} 50. Ke2 {[%clk 0:00:04]}  Kd6 {[%clk 0:00:08]} 51. Kd3 {[%clk 0:00:05]}  Ke5 {[%clk 0:00:09]} 52. b4 {[%clk 0:00:04]}  g5 {[%clk 0:00:10]} 53. a4 {[%clk 0:00:04]}  g4 {[%clk 0:00:11]} 54. b5 {[%clk 0:00:04]}  g3 {[%clk 0:00:12]} 55. a5 {[%clk 0:00:04]}  Kd6 {[%clk 0:00:13]} 56. b6 {[%clk 0:00:03]}  Kc5 {[%clk 0:00:14]} 57. b7 {[%clk 0:00:03]}  a6 {[%clk 0:00:08]} 58. b8=Q {[%clk 0:00:04]} 1/2-1/2


[Site "https://www.chess.com"]

[Event "Titled Tuesday Blitz November 01 Early 2022"]
[White "Baches Garcia, Guillermo"]
[Black "Winkels, Marcel"]
[WhiteFideId "2209764"]
[BlackFideId "1003887"]
[WhiteElo "2451"]
[BlackElo "1900"]
[Result "1-0"]
[Round "02"]
[TimeControl "180+1"]
[Date "2022.11.02"]
[WhiteClock "0:00:50"]
[BlackClock "0:00:20"]

1. e4 {[%clk 0:02:57]}  c5 {[%clk 0:02:59]} 2. Nf3 {[%clk 0:02:58]}  d6 {[%clk 0:02:59]} 3. d4 {[%clk 0:02:58]}  cxd4 {[%clk 0:02:59]} 4. Nxd4 {[%clk 0:02:59]}  Nf6 {[%clk 0:02:59]} 5. Nc3 {[%clk 0:02:59]}  a6 {[%clk 0:02:59]} 6. Be3 {[%clk 0:02:59]}  e5 {[%clk 0:02:59]} 7. Nb3 {[%clk 0:03:00]}  Be6 {[%clk 0:02:59]} 8. f3 {[%clk 0:03:00]}  Nbd7 {[%clk 0:02:58]} 9. Qd2 {[%clk 0:03:00]}  h5 {[%clk 0:02:58]} 10. Be2 {[%clk 0:02:59]}  Be7 {[%clk 0:02:57]} 11. Nd5 {[%clk 0:02:59]}  Nxd5 {[%clk 0:02:38]} 12. exd5 {[%clk 0:03:00]}  Bf5 {[%clk 0:02:38]} 13. O-O {[%clk 0:02:52]}  Rc8 {[%clk 0:02:36]} 14. c4 {[%clk 0:02:47]}  O-O {[%clk 0:02:34]} 15. Na5 {[%clk 0:02:44]}  Qc7 {[%clk 0:02:25]} 16. b4 {[%clk 0:02:43]}  Qb8 {[%clk 0:02:14]} 17. Rac1 {[%clk 0:02:40]}  Bd8 {[%clk 0:02:10]} 18. Nb3 {[%clk 0:02:35]}  a5 {[%clk 0:01:55]} 19. bxa5 {[%clk 0:02:14]}  Qa8 {[%clk 0:01:52]} 20. Qb4 {[%clk 0:02:11]}  Be7 {[%clk 0:01:41]} 21. f4 {[%clk 0:02:03]}  exf4 {[%clk 0:01:34]} 22. Bxf4 {[%clk 0:01:55]}  Nc5 {[%clk 0:01:28]} 23. Nxc5 {[%clk 0:01:45]}  dxc5 {[%clk 0:01:26]} 24. Qd2 {[%clk 0:01:44]}  Bf6 {[%clk 0:01:19]} 25. Bxh5 {[%clk 0:01:40]}  Bd4+ {[%clk 0:01:16]} 26. Be3 {[%clk 0:01:40]}  g6 {[%clk 0:01:09]} 27. Bxd4 {[%clk 0:01:37]}  cxd4 {[%clk 0:01:07]} 28. Qxd4 {[%clk 0:01:36]}  Qxa5 {[%clk 0:01:00]} 29. Bf3 {[%clk 0:01:16]}  Qxa2 {[%clk 0:00:54]} 30. c5 {[%clk 0:01:15]}  Rfd8 {[%clk 0:00:52]} 31. d6 {[%clk 0:01:13]}  Qa6 {[%clk 0:00:50]} 32. Bd5 {[%clk 0:01:08]}  Rd7 {[%clk 0:00:45]} 33. g4 {[%clk 0:01:07]}  Be6 {[%clk 0:00:38]} 34. Bxe6 {[%clk 0:01:03]}  fxe6 {[%clk 0:00:37]} 35. Rf6 {[%clk 0:01:02]}  Rg7 {[%clk 0:00:25]} 36. Rxe6 {[%clk 0:01:00]}  Rf8 {[%clk 0:00:26]} 37. Re7 {[%clk 0:00:55]}  Rff7 {[%clk 0:00:21]} 38. Rxf7 {[%clk 0:00:51]}  Rxf7 {[%clk 0:00:20]} 39. d7 {[%clk 0:00:50]} 1-0


[Site "https://www.chess.com"]